Workbook

Sheet Pedidos
A1: NroPedido | B1: Cliente | C1: Empleado | D1: Fecha de pedido | E1: Fecha de entrega | F1: Fecha de envío | G1: Forma de envío | H1: Cargo | I1: NombreDestino | J1: DirecDestino | K1: CIudadDestino | L1: PaisDestino | M1: MontoTotal
A2: 10248 | B2: Wilman Kala | C2: Buchanan, Steven | D2: 1996-07-04 | E2: 1996-08-01 | F2: 1996-07-16 | G2: Federal Shipping | H2: 32.38 | I2: Wilman Kala | J2: Keskuskatu 45 | K2: Helsinki | L2: Finlandia | M2: =SUMIF(NroPedD,A2,Monto) -> 60491.8
A3: 10249 | B3: Toms Spezialitäten | C3: Suyama, Michael | D3: 1996-07-05 | E3: 1996-08-16 | F3: 1996-07-10 | G3: Speedy Express | H3: 11.61 | I3: Toms Spezialitäten | J3: Luisenstr. 48 | K3: Münster | L3: Alemania | M3: 132461.2
A4: 10250 | B4: Hanari Carnes | C4: Peacock, Margaret | D4: 1996-07-08 | E4: 1996-08-05 | F4: 1996-07-12 | G4: United Package | H4: 65.83 | I4: Hanari Carnes | J4: Rua do Paço, 67 | K4: Río de Janeiro | L4: Brasil | M4: 35192.82
A5: 10251 | B5: Victuailles en stock | C5: Leverling, Janet | D5: 1996-07-08 | E5: 1996-08-05 | F5: 1996-07-15 | G5: Speedy Express | H5: 41.34 | I5: Victuailles en stock | J5: 2, rue du Commerce | K5: Lyon | L5: Francia | M5: 48929.1
A6: 10252 | B6: Suprêmes délices | C6: Peacock, Margaret | D6: 1996-07-09 | E6: 1996-08-06 | F6: 1996-07-11 | G6: United Package | H6: 51.3 | I6: Suprêmes délices | J6: Boulevard Tirou, 255 | K6: Charleroi | L6: Bélgica | M6: 91365.84
A7: 10253 | B7: Hanari Carnes | C7: Leverling, Janet | D7: 1996-07-10 | E7: 1996-07-24 | F7: 1996-07-16 | G7: United Package | H7: 58.17 | I7: Hanari Carnes | J7: Rua do Paço, 67 | K7: Río de Janeiro | L7: Brasil | M7: 48782.8
A8: 10254 | B8: Chop-suey Chinese | C8: Buchanan, Steven | D8: 1996-07-11 | E8: 1996-08-08 | F8: 1996-07-23 | G8: United Package | H8: 22.98 | I8: Chop-suey Chinese | J8: Hauptstr. 31 | K8: Bern | L8: Suiza | M8: 55176.96
A9: 10255 | B9: Richter Supermarkt | C9: Dodsworth, Anne | D9: 1996-07-12 | E9: 1996-08-09 | F9: 1996-07-15 | G9: Federal Shipping | H9: 148.33 | I9: Richter Supermarkt | J9: Starenweg 5 | K9: Genève | L9: Suiza | M9: 71734.4
A10: 10256 | B10: Wellington Importadora | C10: Leverling, Janet | D10: 1996-07-15 | E10: 1996-08-12 | F10: 1996-07-17 | G10: United Package | H10: 13.97 | I10: Wellington Importadora | J10: Rua do Mercado, 12 | K10: Resende | L10: Brasil | M10: 36363.6
A11: 10257 | B11: HILARIÓN-Abastos | C11: Peacock, Margaret | D11: 1996-07-16 | E11: 1996-08-13 | F11: 1996-07-22 | G11: Federal Shipping | H11: 81.91 | I11: HILARIÓN-Abastos | J11: Carrera 22 con Ave. Carlos Soublette #8-35 | K11: San Cristóbal | L11: Venezuela | M11: 79686
A12: 10258 | B12: Ernst Handel | C12: Davolio, Nancy | D12: 1996-07-17 | E12: 1996-08-14 | F12: 1996-07-23 | G12: Speedy Express | H12: 140.51 | I12: Ernst Handel | J12: Kirchgasse 6 | K12: Graz | L12: Austria | M12: 50769.92
A13: 10259 | B13: Centro comercial Moctezuma | C13: Peacock, Margaret | D13: 1996-07-18 | E13: 1996-08-15 | F13: 1996-07-25 | G13: Federal Shipping | H13: 3.25 | I13: Centro comercial Moctezuma | J13: Sierras de Granada 9993 | K13: México D.F. | L13: México | M13: 68147.2
A14: 10260 | B14: Ottilies Käseladen | C14: Peacock, Margaret | D14: 1996-07-19 | E14: 1996-08-16 | F14: 1996-07-29 | G14: Speedy Express | H14: 55.09 | I14: Ottilies Käseladen | J14: Mehrheimerstr. 369 | K14: Köln | L14: Alemania | M14: 48819.6
A15: 10261 | B15: Que Delícia | C15: Peacock, Margaret | D15: 1996-07-19 | E15: 1996-08-16 | F15: 1996-07-30 | G15: United Package | H15: 3.05 | I15: Que Delícia | J15: Rua da Panificadora, 12 | K15: Río de Janeiro | L15: Brasil | M15: 3148.8
A16: 10262 | B16: Rattlesnake Canyon Grocery | C16: Callahan, Laura | D16: 1996-07-22 | E16: 1996-08-19 | F16: 1996-07-25 | G16: Federal Shipping | H16: 48.29 | I16: Rattlesnake Canyon Grocery | J16: 2817 Milton Dr. | K16: Albuquerque | L16: Estados Unidos | M16: 23853.6
A17: 10263 | B17: Ernst Handel | C17: Dodsworth, Anne | D17: 1996-07-23 | E17: 1996-08-20 | F17: 1996-07-31 | G17: Federal Shipping | H17: 146.06 | I17: Ernst Handel | J17: Kirchgasse 6 | K17: Graz | L17: Austria | M17: 41427.675
A18: 10264 | B18: Folk och fä HB | C18: Suyama, Michael | D18: 1996-07-24 | E18: 1996-08-21 | F18: 1996-08-23 | G18: Federal Shipping | H18: 3.67 | I18: Folk och fä HB | J18: Åkergatan 24 | K18: Bräcke | L18: Suecia | M18: 48505.25
A19: 10265 | B19: Blondel père et fils | C19: Fuller, Andrew | D19: 1996-07-25 | E19: 1996-08-22 | F19: 1996-08-12 | G19: Speedy Express | H19: 55.28 | I19: Blondel père et fils | J19: 24, place Kléber | K19: Strasbourg | L19: Francia | M19: 32016
A20: 10266 | B20: Wartian Herkku | C20: Leverling, Janet | D20: 1996-07-26 | E20: 1996-09-06 | F20: 1996-07-31 | G20: Federal Shipping | H20: 25.73 | I20: Wartian Herkku | J20: Torikatu 38 | K20: Oulu | L20: Finlandia | M20: 39074.64
A21: 10267 | B21: Frankenversand | C21: Peacock, Margaret | D21: 1996-07-29 | E21: 1996-08-26 | F21: 1996-08-06 | G21: Speedy Express | H21: 208.58 | I21: Frankenversand | J21: Berliner Platz 43 | K21: München | L21: Alemania | M21: 148469.48
A22: 10268 | B22: GROSELLA-Restaurante | C22: Callahan, Laura | D22: 1996-07-30 | E22: 1996-08-27 | F22: 1996-08-02 | G22: Federal Shipping | H22: 66.29 | I22: GROSELLA-Restaurante | J22: 5ª Ave. Los Palos Grandes | K22: Caracas | L22: Venezuela | M22: 3030.2
A23: 10269 | B23: White Clover Markets | C23: Buchanan, Steven | D23: 1996-07-31 | E23: 1996-08-14 | F23: 1996-08-09 | G23: Speedy Express | H23: 4.56 | I23: White Clover Markets | J23: 1029 - 12th Ave. S. | K23: Seattle | L23: Estados Unidos | M23: 30786.27
A24: 10270 | B24: Wartian Herkku | C24: Davolio, Nancy | D24: 1996-08-01 | E24: 1996-08-29 | F24: 1996-08-02 | G24: Speedy Express | H24: 136.54 | I24: Wartian Herkku | J24: Torikatu 38 | K24: Oulu | L24: Finlandia | M24: 23957.6
A25: 10271 | B25: Split Rail Beer & Ale | C25: Suyama, Michael | D25: 1996-08-01 | E25: 1996-08-29 | F25: 1996-08-30 | G25: United Package | H25: 4.54 | I25: Split Rail Beer & Ale | J25: P.O. Box 555 | K25: Lander | L25: Estados Unidos | M25: 3380
A26: 10272 | B26: Rattlesnake Canyon Grocery | C26: Suyama, Michael | D26: 1996-08-02 | E26: 1996-08-30 | F26: 1996-08-06 | G26: United Package | H26: 98.03 | I26: Rattlesnake Canyon Grocery | J26: 2817 Milton Dr. | K26: Albuquerque | L26: Estados Unidos | M26: 35722.8
A27: 10273 | B27: QUICK-Stop | C27: Leverling, Janet | D27: 1996-08-05 | E27: 1996-09-02 | F27: 1996-08-12 | G27: Federal Shipping | H27: 76.07 | I27: QUICK-Stop | J27: Taucherstraße 10 | K27: Cunewalde | L27: Alemania | M27: 92361.45
A28: 10274 | B28: Vins et alcools Chevalier | C28: Suyama, Michael | D28: 1996-08-06 | E28: 1996-09-03 | F28: 1996-08-16 | G28: Speedy Express | H28: 6.01 | I28: Vins et alcools Chevalier | J28: 59 rue de l'Abbaye | K28: Reims | L28: Francia | M28: 72820.8
A29: 10275 | B29: Magazzini Alimentari Riuniti | C29: Davolio, Nancy | D29: 1996-08-07 | E29: 1996-09-04 | F29: 1996-08-09 | G29: Speedy Express | H29: 26.93 | I29: Magazzini Alimentari Riuniti | J29: Via Ludovico il Moro 22 | K29: Bérgamo | L29: Italia | M29: 48543.48
A30: 10276 | B30: Tortuga Restaurante | C30: Callahan, Laura | D30: 1996-08-08 | E30: 1996-08-22 | F30: 1996-08-14 | G30: Federal Shipping | H30: 13.84 | I30: Tortuga Restaurante | J30: Avda. Azteca 123 | K30: México D.F. | L30: México | M30: 13638.4
A31: 10277 | B31: Morgenstern Gesundkost | C31: Fuller, Andrew | D31: 1996-08-09 | E31: 1996-09-06 | F31: 1996-08-13 | G31: Federal Shipping | H31: 125.77 | I31: Morgenstern Gesundkost | J31: Heerstr. 22 | K31: Leipzig | L31: Alemania | M31: 68226
A32: 10278 | B32: Berglunds snabbköp | C32: Callahan, Laura | D32: 1996-08-12 | E32: 1996-09-09 | F32: 1996-08-16 | G32: United Package | H32: 92.69 | I32: Berglunds snabbköp | J32: Berguvsvägen 8 | K32: Luleå | L32: Suecia | M32: 233770.4
A33: 10279 | B33: Lehmanns Marktstand | C33: Callahan, Laura | D33: 1996-08-13 | E33: 1996-09-10 | F33: 1996-08-16 | G33: United Package | H33: 25.83 | I33: Lehmanns Marktstand | J33: Magazinweg 7 | K33: Frankfurt a.M. | L33: Alemania | M33: 78366.6
A34: 10280 | B34: Berglunds snabbköp | C34: Fuller, Andrew | D34: 1996-08-14 | E34: 1996-09-11 | F34: 1996-09-12 | G34: Speedy Express | H34: 8.98 | I34: Berglunds snabbköp | J34: Berguvsvägen 8 | K34: Luleå | L34: Suecia | M34: 23120.4
A35: 10281 | B35: Romero y tomillo | C35: Peacock, Margaret | D35: 1996-08-14 | E35: 1996-08-28 | F35: 1996-08-21 | G35: Speedy Express | H35: 2.94 | I35: Romero y tomillo | J35: Gran Vía, 1 | K35: Madrid | L35: España | M35: 49569.2
A36: 10282 | B36: Romero y tomillo | C36: Peacock, Margaret | D36: 1996-08-15 | E36: 1996-09-12 | F36: 1996-08-21 | G36: Speedy Express | H36: 12.69 | I36: Romero y tomillo | J36: Gran Vía, 1 | K36: Madrid | L36: España | M36: 27645.6
A37: 10283 | B37: LILA-Supermercado | C37: Leverling, Janet | D37: 1996-08-16 | E37: 1996-09-13 | F37: 1996-08-23 | G37: Federal Shipping | H37: 84.81 | I37: LILA-Supermercado | J37: Carrera 52 con Ave. Bolívar #65-98 Llano Largo | K37: Barquisimeto | L37: Venezuela | M37: 51921.6
A38: 10284 | B38: Lehmanns Marktstand | C38: Peacock, Margaret | D38: 1996-08-19 | E38: 1996-09-16 | F38: 1996-08-27 | G38: Speedy Express | H38: 76.56 | I38: Lehmanns Marktstand | J38: Magazinweg 7 | K38: Frankfurt a.M. | L38: Alemania | M38: 84221.8
A39: 10285 | B39: QUICK-Stop | C39: Davolio, Nancy | D39: 1996-08-20 | E39: 1996-09-17 | F39: 1996-08-26 | G39: United Package | H39: 76.83 | I39: QUICK-Stop | J39: Taucherstraße 10 | K39: Cunewalde | L39: Alemania | M39: 24407.52
A40: 10286 | B40: QUICK-Stop | C40: Callahan, Laura | D40: 1996-08-21 | E40: 1996-09-18 | F40: 1996-08-30 | G40: Federal Shipping | H40: 229.24 | I40: QUICK-Stop | J40: Taucherstraße 10 | K40: Cunewalde | L40: Alemania | M40: 28449.6
A41: 10287 | B41: Ricardo Adocicados | C41: Callahan, Laura | D41: 1996-08-22 | E41: 1996-09-19 | F41: 1996-08-28 | G41: Federal Shipping | H41: 12.76 | I41: Ricardo Adocicados | J41: Av. Copacabana, 267 | K41: Río de Janeiro | L41: Brasil | M41: 43975.52
A42: 10288 | B42: Reggiani Caseifici | C42: Peacock, Margaret | D42: 1996-08-23 | E42: 1996-09-20 | F42: 1996-09-03 | G42: Speedy Express | H42: 7.45 | I42: Reggiani Caseifici | J42: Strada Provinciale 124 | K42: Reggio Emilia | L42: Italia | M42: 22870.62
A43: 10289 | B43: B's Beverages | C43: King, Robert | D43: 1996-08-26 | E43: 1996-09-23 | F43: 1996-08-28 | G43: Federal Shipping | H43: 22.77 | I43: B's Beverages | J43: Fauntleroy Circus | K43: London | L43: Reino Unido | M43: 16808
A44: 10290 | B44: Comércio Mineiro | C44: Callahan, Laura | D44: 1996-08-27 | E44: 1996-09-24 | F44: 1996-09-03 | G44: Speedy Express | H44: 79.7 | I44: Comércio Mineiro | J44: Av. dos Lusíadas, 23 | K44: São Paulo | L44: Brasil | M44: 126713.8
A45: 10291 | B45: Que Delícia | C45: Suyama, Michael | D45: 1996-08-27 | E45: 1996-09-24 | F45: 1996-09-04 | G45: United Package | H45: 6.4 | I45: Que Delícia | J45: Rua da Panificadora, 12 | K45: Río de Janeiro | L45: Brasil | M45: 52354.44
A46: 10292 | B46: Tradição Hipermercados | C46: Davolio, Nancy | D46: 1996-08-28 | E46: 1996-09-25 | F46: 1996-09-02 | G46: United Package | H46: 1.35 | I46: Tradição Hipermercados | J46: Av. Inês de Castro, 414 | K46: São Paulo | L46: Brasil | M46: 15163.2
A47: 10293 | B47: Tortuga Restaurante | C47: Davolio, Nancy | D47: 1996-08-29 | E47: 1996-09-26 | F47: 1996-09-11 | G47: Federal Shipping | H47: 21.18 | I47: Tortuga Restaurante | J47: Avda. Azteca 123 | K47: México D.F. | L47: México | M47: 38167.6
A48: 10294 | B48: Rattlesnake Canyon Grocery | C48: Peacock, Margaret | D48: 1996-08-30 | E48: 1996-09-27 | F48: 1996-09-05 | G48: United Package | H48: 147.26 | I48: Rattlesnake Canyon Grocery | J48: 2817 Milton Dr. | K48: Albuquerque | L48: Estados Unidos | M48: 46913.2
A49: 10295 | B49: Vins et alcools Chevalier | C49: Fuller, Andrew | D49: 1996-09-02 | E49: 1996-09-30 | F49: 1996-09-10 | G49: United Package | H49: 1.15 | I49: Vins et alcools Chevalier | J49: 59 rue de l'Abbaye | K49: Reims | L49: Francia | M49: 26296
A50: 10296 | B50: LILA-Supermercado | C50: Suyama, Michael | D50: 1996-09-03 | E50: 1996-10-01 | F50: 1996-09-11 | G50: Speedy Express | H50: 0.12 | I50: LILA-Supermercado | J50: Carrera 52 con Ave. Bolívar #65-98 Llano Largo | K50: Barquisimeto | L50: Venezuela | M50: 91728
A51: 10297 | B51: Blondel père et fils | C51: Buchanan, Steven | D51: 1996-09-04 | E51: 1996-10-16 | F51: 1996-09-10 | G51: United Package | H51: 5.74 | I51: Blondel père et fils | J51: 24, place Kléber | K51: Strasbourg | L51: Francia | M51: 69080.8
A52: 10298 | B52: Hungry Owl All-Night Grocers | C52: Suyama, Michael | D52: 1996-09-05 | E52: 1996-10-03 | F52: 1996-09-11 | G52: United Package | H52: 168.22 | I52: Hungry Owl All-Night Grocers | J52: 8 Johnstown Road | K52: Cork | L52: Irlanda | M52: 146157
A53: 10299 | B53: Ricardo Adocicados | C53: Peacock, Margaret | D53: 1996-09-06 | E53: 1996-10-04 | F53: 1996-09-13 | G53: United Package | H53: 29.76 | I53: Ricardo Adocicados | J53: Av. Copacabana, 267 | K53: Río de Janeiro | L53: Brasil | M53: 51023
A54: 10300 | B54: Magazzini Alimentari Riuniti | C54: Fuller, Andrew | D54: 1996-09-09 | E54: 1996-10-07 | F54: 1996-09-18 | G54: United Package | H54: 17.68 | I54: Magazzini Alimentari Riuniti | J54: Via Ludovico il Moro 22 | K54: Bérgamo | L54: Italia | M54: 14307.6
A55: 10301 | B55: Die Wandernde Kuh | C55: Callahan, Laura | D55: 1996-09-09 | E55: 1996-10-07 | F55: 1996-09-17 | G55: United Package | H55: 45.08 | I55: Die Wandernde Kuh | J55: Adenauerallee 900 | K55: Stuttgart | L55: Alemania | M55: 27469.9
A56: 10302 | B56: Suprêmes délices | C56: Peacock, Margaret | D56: 1996-09-10 | E56: 1996-10-08 | F56: 1996-10-09 | G56: United Package | H56: 6.27 | I56: Suprêmes délices | J56: Boulevard Tirou, 255 | K56: Charleroi | L56: Bélgica | M56: 40308.4
A57: 10303 | B57: Godos Cocina Típica | C57: King, Robert | D57: 1996-09-11 | E57: 1996-10-09 | F57: 1996-09-18 | G57: United Package | H57: 107.83 | I57: Godos Cocina Típica | J57: C/ Romero, 33 | K57: Sevilla | L57: España | M57: 54072.36
A58: 10304 | B58: Tortuga Restaurante | C58: Davolio, Nancy | D58: 1996-09-12 | E58: 1996-10-10 | F58: 1996-09-17 | G58: United Package | H58: 63.79 | I58: Tortuga Restaurante | J58: Avda. Azteca 123 | K58: México D.F. | L58: México | M58: 27004
A59: 10305 | B59: Old World Delicatessen | C59: Callahan, Laura | D59: 1996-09-13 | E59: 1996-10-11 | F59: 1996-10-09 | G59: Federal Shipping | H59: 257.62 | I59: Old World Delicatessen | J59: 2743 Bering St. | K59: Anchorage | L59: Estados Unidos | M59: 25297.92
A60: 10306 | B60: Romero y tomillo | C60: Davolio, Nancy | D60: 1996-09-16 | E60: 1996-10-14 | F60: 1996-09-23 | G60: Federal Shipping | H60: 7.56 | I60: Romero y tomillo | J60: Gran Vía, 1 | K60: Madrid | L60: España | M60: 41756
A61: 10307 | B61: Lonesome Pine Restaurant | C61: Fuller, Andrew | D61: 1996-09-17 | E61: 1996-10-15 | F61: 1996-09-25 | G61: United Package | H61: 0.56 | I61: Lonesome Pine Restaurant | J61: 89 Chiaroscuro Rd. | K61: Portland | L61: Estados Unidos | M61: 46846.4
A62: 10308 | B62: Ana Trujillo Emparedados y helados | C62: King, Robert | D62: 1996-09-18 | E62: 1996-10-16 | F62: 1996-09-24 | G62: Federal Shipping | H62: 1.61 | I62: Ana Trujillo Emparedados y helados | J62: Avda. de la Constitución 2222 | K62: México D.F. | L62: México | M62: 37461.6
A63: 10309 | B63: Hungry Owl All-Night Grocers | C63: Leverling, Janet | D63: 1996-09-19 | E63: 1996-10-17 | F63: 1996-10-23 | G63: Speedy Express | H63: 47.3 | I63: Hungry Owl All-Night Grocers | J63: 8 Johnstown Road | K63: Cork | L63: Irlanda | M63: 100325.2
A64: 10310 | B64: The Big Cheese | C64: Callahan, Laura | D64: 1996-09-20 | E64: 1996-10-18 | F64: 1996-09-27 | G64: United Package | H64: 17.52 | I64: The Big Cheese | J64: 89 Jefferson Way Suite 2 | K64: Portland | L64: Estados Unidos | M64: 35988.8
A65: 10311 | B65: Du monde entier | C65: Davolio, Nancy | D65: 1996-09-20 | E65: 1996-10-04 | F65: 1996-09-26 | G65: Federal Shipping | H65: 24.69 | I65: Du monde entier | J65: 67, rue des Cinquante Otages | K65: Nantes | L65: Francia | M65: 19252.8
A66: 10312 | B66: Die Wandernde Kuh | C66: Fuller, Andrew | D66: 1996-09-23 | E66: 1996-10-21 | F66: 1996-10-03 | G66: United Package | H66: 40.26 | I66: Die Wandernde Kuh | J66: Adenauerallee 900 | K66: Stuttgart | L66: Alemania | M66: =SUMIF(NroPedD,A66,Monto) -> 182579.2
A67: 10313 | B67: QUICK-Stop | C67: Fuller, Andrew | D67: 1996-09-24 | E67: 1996-10-22 | F67: 1996-10-04 | G67: United Package | H67: 1.96 | I67: QUICK-Stop | J67: Taucherstraße 10 | K67: Cunewalde | L67: Alemania | M67: 29640
A68: 10314 | B68: Rattlesnake Canyon Grocery | C68: Davolio, Nancy | D68: 1996-09-25 | E68: 1996-10-23 | F68: 1996-10-04 | G68: United Package | H68: 74.16 | I68: Rattlesnake Canyon Grocery | J68: 2817 Milton Dr. | K68: Albuquerque | L68: Estados Unidos | M68: 94839.66
A69: 10315 | B69: Island Trading | C69: Peacock, Margaret | D69: 1996-09-26 | E69: 1996-10-24 | F69: 1996-10-03 | G69: United Package | H69: 41.76 | I69: Island Trading | J69: Garden House Crowther Way | K69: Cowes | L69: Reino Unido | M69: 44383.2
A70: 10316 | B70: Rattlesnake Canyon Grocery | C70: Davolio, Nancy | D70: 1996-09-27 | E70: 1996-10-25 | F70: 1996-10-08 | G70: Federal Shipping | H70: 150.15 | I70: Rattlesnake Canyon Grocery | J70: 2817 Milton Dr. | K70: Albuquerque | L70: Estados Unidos | M70: 14564.5
A71: 10317 | B71: Lonesome Pine Restaurant | C71: Suyama, Michael | D71: 1996-09-30 | E71: 1996-10-28 | F71: 1996-10-10 | G71: Speedy Express | H71: 12.69 | I71: Lonesome Pine Restaurant | J71: 89 Chiaroscuro Rd. | K71: Portland | L71: Estados Unidos | M71: 4723.2
A72: 10318 | B72: Island Trading | C72: Callahan, Laura | D72: 1996-10-01 | E72: 1996-10-29 | F72: 1996-10-04 | G72: United Package | H72: 4.73 | I72: Island Trading | J72: Garden House Crowther Way | K72: Cowes | L72: Reino Unido | M72: 10141.5
A73: 10319 | B73: Tortuga Restaurante | C73: King, Robert | D73: 1996-10-02 | E73: 1996-10-30 | F73: 1996-10-11 | G73: Federal Shipping | H73: 64.5 | I73: Tortuga Restaurante | J73: Avda. Azteca 123 | K73: México D.F. | L73: México | M73: 86400
A74: 10320 | B74: Wartian Herkku | C74: Buchanan, Steven | D74: 1996-10-03 | E74: 1996-10-17 | F74: 1996-10-18 | G74: Federal Shipping | H74: 34.57 | I74: Wartian Herkku | J74: Torikatu 38 | K74: Oulu | L74: Finlandia | M74: 15032.8
A75: 10321 | B75: Island Trading | C75: Leverling, Janet | D75: 1996-10-03 | E75: 1996-10-31 | F75: 1996-10-11 | G75: United Package | H75: 3.43 | I75: Island Trading | J75: Garden House Crowther Way | K75: Cowes | L75: Reino Unido | M75: 2116.8
A76: 10322 | B76: Pericles Comidas clásicas | C76: King, Robert | D76: 1996-10-04 | E76: 1996-11-01 | F76: 1996-10-23 | G76: Federal Shipping | H76: 0.4 | I76: Pericles Comidas clásicas | J76: Calle Dr. Jorge Cash 321 | K76: México D.F. | L76: México | M76: 13876.8
A77: 10323 | B77: Königlich Essen | C77: Peacock, Margaret | D77: 1996-10-07 | E77: 1996-11-04 | F77: 1996-10-14 | G77: Speedy Express | H77: 4.88 | I77: Königlich Essen | J77: Maubelstr. 90 | K77: Brandenburg | L77: Alemania | M77: 62692.4
A78: 10324 | B78: Save-a-lot Markets | C78: Dodsworth, Anne | D78: 1996-10-08 | E78: 1996-11-05 | F78: 1996-10-10 | G78: Speedy Express | H78: 214.27 | I78: Save-a-lot Markets | J78: 187 Suffolk Ln. | K78: Boise | L78: Estados Unidos | M78: 100263.735
A79: 10325 | B79: Königlich Essen | C79: Davolio, Nancy | D79: 1996-10-09 | E79: 1996-10-23 | F79: 1996-10-14 | G79: Federal Shipping | H79: 64.86 | I79: Königlich Essen | J79: Maubelstr. 90 | K79: Brandenburg | L79: Alemania | M79: 124165.2
A80: 10326 | B80: Bólido Comidas preparadas | C80: Peacock, Margaret | D80: 1996-10-10 | E80: 1996-11-07 | F80: 1996-10-14 | G80: United Package | H80: 77.92 | I80: Bólido Comidas preparadas | J80: C/ Araquil, 67 | K80: Madrid | L80: España | M80: 33730
A81: 10327 | B81: Folk och fä HB | C81: Fuller, Andrew | D81: 1996-10-11 | E81: 1996-11-08 | F81: 1996-10-14 | G81: Speedy Express | H81: 63.36 | I81: Folk och fä HB | J81: Åkergatan 24 | K81: Bräcke | L81: Suecia | M81: 5934.56
A82: 10328 | B82: Furia Bacalhau e Frutos do Mar | C82: Peacock, Margaret | D82: 1996-10-14 | E82: 1996-11-11 | F82: 1996-10-17 | G82: Federal Shipping | H82: 87.03 | I82: Furia Bacalhau e Frutos do Mar | J82: Jardim das rosas n. 32 | K82: Lisboa | L82: Portugal | M82: 72637.6
A83: 10329 | B83: Split Rail Beer & Ale | C83: Peacock, Margaret | D83: 1996-10-15 | E83: 1996-11-26 | F83: 1996-10-23 | G83: United Package | H83: 191.67 | I83: Split Rail Beer & Ale | J83: P.O. Box 555 | K83: Lander | L83: Estados Unidos | M83: 122527.01
A84: 10330 | B84: LILA-Supermercado | C84: Leverling, Janet | D84: 1996-10-16 | E84: 1996-11-13 | F84: 1996-10-28 | G84: Speedy Express | H84: 12.75 | I84: LILA-Supermercado | J84: Carrera 52 con Ave. Bolívar #65-98 Llano Largo | K84: Barquisimeto | L84: Venezuela | M84: 51375.7
A85: 10331 | B85: Bon app' | C85: Dodsworth, Anne | D85: 1996-10-16 | E85: 1996-11-27 | F85: 1996-10-21 | G85: Speedy Express | H85: 10.19 | I85: Bon app' | J85: 12, rue des Bouchers | K85: Marseille | L85: Francia | M85: 2360
A86: 10332 | B86: Mère Paillarde | C86: Leverling, Janet | D86: 1996-10-17 | E86: 1996-11-28 | F86: 1996-10-21 | G86: United Package | H86: 52.84 | I86: Mère Paillarde | J86: 43 rue St. Laurent | K86: Montréal | L86: Canadá | M86: 30557.76
A87: 10333 | B87: Wartian Herkku | C87: Buchanan, Steven | D87: 1996-10-18 | E87: 1996-11-15 | F87: 1996-10-25 | G87: Federal Shipping | H87: 0.59 | I87: Wartian Herkku | J87: Torikatu 38 | K87: Oulu | L87: Finlandia | M87: 48951.84
A88: 10334 | B88: Victuailles en stock | C88: Callahan, Laura | D88: 1996-10-21 | E88: 1996-11-18 | F88: 1996-10-28 | G88: United Package | H88: 8.56 | I88: Victuailles en stock | J88: 2, rue du Commerce | K88: Lyon | L88: Francia | M88: 14292
A89: 10335 | B89: Hungry Owl All-Night Grocers | C89: King, Robert | D89: 1996-10-22 | E89: 1996-11-19 | F89: 1996-10-24 | G89: United Package | H89: 42.11 | I89: Hungry Owl All-Night Grocers | J89: 8 Johnstown Road | K89: Cork | L89: Irlanda | M89: 103378.88
A90: 10336 | B90: Princesa Isabel Vinhos | C90: King, Robert | D90: 1996-10-23 | E90: 1996-11-20 | F90: 1996-10-25 | G90: United Package | H90: 15.51 | I90: Princesa Isabel Vinhos | J90: Estrada da saúde n. 58 | K90: Lisboa | L90: Portugal | M90: 9567.36
A91: 10337 | B91: Frankenversand | C91: Peacock, Margaret | D91: 1996-10-24 | E91: 1996-11-21 | F91: 1996-10-29 | G91: Federal Shipping | H91: 108.26 | I91: Frankenversand | J91: Berliner Platz 43 | K91: München | L91: Alemania | M91: 102244.2
A92: 10338 | B92: Old World Delicatessen | C92: Peacock, Margaret | D92: 1996-10-25 | E92: 1996-11-22 | F92: 1996-10-29 | G92: Federal Shipping | H92: 84.21 | I92: Old World Delicatessen | J92: 2743 Bering St. | K92: Anchorage | L92: Estados Unidos | M92: 60709.2
A93: 10339 | B93: Mère Paillarde | C93: Fuller, Andrew | D93: 1996-10-28 | E93: 1996-11-25 | F93: 1996-11-04 | G93: United Package | H93: 15.66 | I93: Mère Paillarde | J93: 43 rue St. Laurent | K93: Montréal | L93: Canadá | M93: 60675.2
A94: 10340 | B94: Bon app' | C94: Davolio, Nancy | D94: 1996-10-29 | E94: 1996-11-26 | F94: 1996-11-08 | G94: Federal Shipping | H94: 166.31 | I94: Bon app' | J94: 12, rue des Bouchers | K94: Marseille | L94: Francia | M94: 53653.53
A95: 10341 | B95: Simons bistro | C95: King, Robert | D95: 1996-10-29 | E95: 1996-11-26 | F95: 1996-11-05 | G95: Federal Shipping | H95: 26.78 | I95: Simons bistro | J95: Vinbæltet 34 | K95: København | L95: Dinamarca | M95: 8229.2
A96: 10342 | B96: Frankenversand | C96: Peacock, Margaret | D96: 1996-10-30 | E96: 1996-11-13 | F96: 1996-11-04 | G96: United Package | H96: 54.83 | I96: Frankenversand | J96: Berliner Platz 43 | K96: München | L96: Alemania | M96: 25580.16
A97: 10343 | B97: Lehmanns Marktstand | C97: Peacock, Margaret | D97: 1996-10-31 | E97: 1996-11-28 | F97: 1996-11-06 | G97: Speedy Express | H97: 110.37 | I97: Lehmanns Marktstand | J97: Magazinweg 7 | K97: Frankfurt a.M. | L97: Alemania | M97: 54724.4
A98: 10344 | B98: White Clover Markets | C98: Peacock, Margaret | D98: 1996-11-01 | E98: 1996-11-29 | F98: 1996-11-05 | G98: United Package | H98: 23.29 | I98: White Clover Markets | J98: 1029 - 12th Ave. S. | K98: Seattle | L98: Estados Unidos | M98: 44337.6
A99: 10345 | B99: QUICK-Stop | C99: Fuller, Andrew | D99: 1996-11-04 | E99: 1996-12-02 | F99: 1996-11-11 | G99: United Package | H99: 249.06 | I99: QUICK-Stop | J99: Taucherstraße 10 | K99: Cunewalde | L99: Alemania | M99: 51750
A100: 10346 | B100: Rattlesnake Canyon Grocery | C100: Leverling, Janet | D100: 1996-11-05 | E100: 1996-12-17 | F100: 1996-11-08 | G100: Federal Shipping | H100: 142.08 | I100: Rattlesnake Canyon Grocery | J100: 2817 Milton Dr. | K100: Albuquerque | L100: Estados Unidos | M100: 50165.76
A101: 10347 | B101: Familia Arquibaldo | C101: Peacock, Margaret | D101: 1996-11-06 | E101: 1996-12-04 | F101: 1996-11-08 | G101: Federal Shipping | H101: 3.1 | I101: Familia Arquibaldo | J101: Rua Orós, 92 | K101: São Paulo | L101: Brasil | M101: 55928.44
A102: 10348 | B102: Die Wandernde Kuh | C102: Peacock, Margaret | D102: 1996-11-07 | E102: 1996-12-05 | F102: 1996-11-15 | G102: United Package | H102: 0.78 | I102: Die Wandernde Kuh | J102: Adenauerallee 900 | K102: Stuttgart | L102: Alemania | M102: 25410.24
A103: 10349 | B103: Split Rail Beer & Ale | C103: King, Robert | D103: 1996-11-08 | E103: 1996-12-06 | F103: 1996-11-15 | G103: Speedy Express | H103: 8.63 | I103: Split Rail Beer & Ale | J103: P.O. Box 555 | K103: Lander | L103: Estados Unidos | M103: 2336.4
A104: 10350 | B104: La maison d'Asie | C104: Suyama, Michael | D104: 1996-11-11 | E104: 1996-12-09 | F104: 1996-12-03 | G104: United Package | H104: 64.19 | I104: La maison d'Asie | J104: 1 rue Alsace-Lorraine | K104: Toulouse | L104: Francia | M104: 35979.84
A105: 10351 | B105: Ernst Handel | C105: Davolio, Nancy | D105: 1996-11-11 | E105: 1996-12-09 | F105: 1996-11-20 | G105: Speedy Express | H105: 162.33 | I105: Ernst Handel | J105: Kirchgasse 6 | K105: Graz | L105: Austria | M105: 251998.54
A106: 10352 | B106: Furia Bacalhau e Frutos do Mar | C106: Leverling, Janet | D106: 1996-11-12 | E106: 1996-11-26 | F106: 1996-11-18 | G106: Federal Shipping | H106: 1.3 | I106: Furia Bacalhau e Frutos do Mar | J106: Jardim das rosas n. 32 | K106: Lisboa | L106: Portugal | M106: 13653.415
A107: 10353 | B107: Piccolo und mehr | C107: King, Robert | D107: 1996-11-13 | E107: 1996-12-11 | F107: 1996-11-25 | G107: Federal Shipping | H107: 360.63 | I107: Piccolo und mehr | J107: Geislweg 14 | K107: Salzburg | L107: Austria | M107: 246010.24
A108: 10354 | B108: Pericles Comidas clásicas | C108: Callahan, Laura | D108: 1996-11-14 | E108: 1996-12-12 | F108: 1996-11-20 | G108: Federal Shipping | H108: 53.8 | I108: Pericles Comidas clásicas | J108: Calle Dr. Jorge Cash 321 | K108: México D.F. | L108: México | M108: 130766.4
A109: 10355 | B109: Around the Horn | C109: Suyama, Michael | D109: 1996-11-15 | E109: 1996-12-13 | F109: 1996-11-20 | G109: Speedy Express | H109: 41.95 | I109: Around the Horn | J109: Brook Farm Stratford St. Mary | K109: Colchester | L109: Reino Unido | M109: 8726.4
A110: 10356 | B110: Die Wandernde Kuh | C110: Suyama, Michael | D110: 1996-11-18 | E110: 1996-12-16 | F110: 1996-11-27 | G110: United Package | H110: 36.71 | I110: Die Wandernde Kuh | J110: Adenauerallee 900 | K110: Stuttgart | L110: Alemania | M110: 48297.6
A111: 10357 | B111: LILA-Supermercado | C111: Davolio, Nancy | D111: 1996-11-19 | E111: 1996-12-17 | F111: 1996-12-02 | G111: Federal Shipping | H111: 34.88 | I111: LILA-Supermercado | J111: Carrera 52 con Ave. Bolívar #65-98 Llano Largo | K111: Barquisimeto | L111: Venezuela | M111: 91838.76
A112: 10358 | B112: La maison d'Asie | C112: Buchanan, Steven | D112: 1996-11-20 | E112: 1996-12-18 | F112: 1996-11-27 | G112: Speedy Express | H112: 19.64 | I112: La maison d'Asie | J112: 1 rue Alsace-Lorraine | K112: Toulouse | L112: Francia | M112: 11091.44
A113: 10359 | B113: Seven Seas Imports | C113: Buchanan, Steven | D113: 1996-11-21 | E113: 1996-12-19 | F113: 1996-11-26 | G113: Federal Shipping | H113: 288.43 | I113: Seven Seas Imports | J113: 90 Wadhurst Rd. | K113: London | L113: Reino Unido | M113: 66802.955
A114: 10360 | B114: Blondel père et fils | C114: Peacock, Margaret | D114: 1996-11-22 | E114: 1996-12-20 | F114: 1996-12-02 | G114: Federal Shipping | H114: 131.7 | I114: Blondel père et fils | J114: 24, place Kléber | K114: Strasbourg | L114: Francia | M114: 118593.6
A115: 10361 | B115: QUICK-Stop | C115: Davolio, Nancy | D115: 1996-11-22 | E115: 1996-12-20 | F115: 1996-12-03 | G115: United Package | H115: 183.17 | I115: QUICK-Stop | J115: Taucherstraße 10 | K115: Cunewalde | L115: Alemania | M115: 5184
A116: 10362 | B116: Bon app' | C116: Leverling, Janet | D116: 1996-11-25 | E116: 1996-12-23 | F116: 1996-11-28 | G116: Speedy Express | H116: 96.04 | I116: Bon app' | J116: 12, rue des Bouchers | K116: Marseille | L116: Francia | M116: 120566.1
A117: 10363 | B117: Drachenblut Delikatessen | C117: Peacock, Margaret | D117: 1996-11-26 | E117: 1996-12-24 | F117: 1996-12-04 | G117: Federal Shipping | H117: 30.54 | I117: Drachenblut Delikatessen | J117: Walserweg 21 | K117: Aachen | L117: Alemania | M117: 7338
A118: 10364 | B118: Eastern Connection | C118: Davolio, Nancy | D118: 1996-11-26 | E118: 1997-01-07 | F118: 1996-12-04 | G118: Speedy Express | H118: 71.97 | I118: Eastern Connection | J118: 35 King George | K118: London | L118: Reino Unido | M118: 50990.4
A119: 10365 | B119: Antonio Moreno Taquería | C119: Leverling, Janet | D119: 1996-11-27 | E119: 1996-12-25 | F119: 1996-12-02 | G119: United Package | H119: 22 | I119: Antonio Moreno Taquería | J119: Mataderos 2312 | K119: México D.F. | L119: México | M119: 14280
A120: 10366 | B120: Galería del gastrónomo | C120: Callahan, Laura | D120: 1996-11-28 | E120: 1997-01-09 | F120: 1996-12-30 | G120: United Package | H120: 10.14 | I120: Galería del gastronómo | J120: Rambla de Cataluña, 23 | K120: Barcelona | L120: España | M120: 36181.6
A121: 10367 | B121: Vaffeljernet | C121: King, Robert | D121: 1996-11-28 | E121: 1996-12-26 | F121: 1996-12-02 | G121: Federal Shipping | H121: 13.55 | I121: Vaffeljernet | J121: Smagsløget 45 | K121: Århus | L121: Dinamarca | M121: 19229.6
A122: 10368 | B122: Ernst Handel | C122: Fuller, Andrew | D122: 1996-11-29 | E122: 1996-12-27 | F122: 1996-12-02 | G122: United Package | H122: 101.95 | I122: Ernst Handel | J122: Kirchgasse 6 | K122: Graz | L122: Austria | M122: 124280.76
A123: 10369 | B123: Split Rail Beer & Ale | C123: Callahan, Laura | D123: 1996-12-02 | E123: 1996-12-30 | F123: 1996-12-09 | G123: United Package | H123: 195.68 | I123: Split Rail Beer & Ale | J123: P.O. Box 555 | K123: Lander | L123: Estados Unidos | M123: 72264
A124: 10370 | B124: Chop-suey Chinese | C124: Suyama, Michael | D124: 1996-12-03 | E124: 1996-12-31 | F124: 1996-12-27 | G124: United Package | H124: 1.17 | I124: Chop-suey Chinese | J124: Hauptstr. 31 | K124: Bern | L124: Suiza | M124: 6751.44
A125: 10371 | B125: La maison d'Asie | C125: Davolio, Nancy | D125: 1996-12-03 | E125: 1996-12-31 | F125: 1996-12-24 | G125: Speedy Express | H125: 0.45 | I125: La maison d'Asie | J125: 1 rue Alsace-Lorraine | K125: Toulouse | L125: Francia | M125: 7879.68
A126: 10372 | B126: Queen Cozinha | C126: Buchanan, Steven | D126: 1996-12-04 | E126: 1997-01-01 | F126: 1996-12-09 | G126: United Package | H126: 890.78 | I126: Queen Cozinha | J126: Alameda dos Canàrios, 891 | K126: São Paulo | L126: Brasil | M126: 313119.6
A127: 10373 | B127: Hungry Owl All-Night Grocers | C127: Peacock, Margaret | D127: 1996-12-05 | E127: 1997-01-02 | F127: 1996-12-11 | G127: Federal Shipping | H127: 124.12 | I127: Hungry Owl All-Night Grocers | J127: 8 Johnstown Road | K127: Cork | L127: Irlanda | M127: 58115.52
A128: 10374 | B128: Wolski Zajazd | C128: Davolio, Nancy | D128: 1996-12-05 | E128: 1997-01-02 | F128: 1996-12-09 | G128: Federal Shipping | H128: 3.94 | I128: Wolski Zajazd | J128: ul. Filtrowa 68 | K128: Warszawa | L128: Polonia | M128: 12475.8
A129: 10375 | B129: Hungry Coyote Import Store | C129: Leverling, Janet | D129: 1996-12-06 | E129: 1997-01-03 | F129: 1996-12-09 | G129: United Package | H129: 20.12 | I129: Hungry Coyote Import Store | J129: City Center Plaza 516 Main St. | K129: Elgin | L129: Estados Unidos | M129: 9676
A130: 10376 | B130: Mère Paillarde | C130: Davolio, Nancy | D130: 1996-12-09 | E130: 1997-01-06 | F130: 1996-12-13 | G130: United Package | H130: 20.39 | I130: Mère Paillarde | J130: 43 rue St. Laurent | K130: Montréal | L130: Canadá | M130: =SUMIF(NroPedD,A130,Monto) -> 3705
A131: 10377 | B131: Seven Seas Imports | C131: Davolio, Nancy | D131: 1996-12-09 | E131: 1997-01-06 | F131: 1996-12-13 | G131: Federal Shipping | H131: 22.21 | I131: Seven Seas Imports | J131: 90 Wadhurst Rd. | K131: London | L131: Reino Unido | M131: 58462.32
A132: 10378 | B132: Folk och fä HB | C132: Buchanan, Steven | D132: 1996-12-10 | E132: 1997-01-07 | F132: 1996-12-19 | G132: Federal Shipping | H132: 5.44 | I132: Folk och fä HB | J132: Åkergatan 24 | K132: Bräcke | L132: Suecia | M132: 0
A133: 10379 | B133: Que Delícia | C133: Fuller, Andrew | D133: 1996-12-11 | E133: 1997-01-08 | F133: 1996-12-13 | G133: Speedy Express | H133: 45.03 | I133: Que Delícia | J133: Rua da Panificadora, 12 | K133: Río de Janeiro | L133: Brasil | M133: 47694.42
A134: 10380 | B134: Hungry Owl All-Night Grocers | C134: Callahan, Laura | D134: 1996-12-12 | E134: 1997-01-09 | F134: 1997-01-16 | G134: Federal Shipping | H134: 35.03 | I134: Hungry Owl All-Night Grocers | J134: 8 Johnstown Road | K134: Cork | L134: Irlanda | M134: 118830.48
A135: 10381 | B135: LILA-Supermercado | C135: Leverling, Janet | D135: 1996-12-12 | E135: 1997-01-09 | F135: 1996-12-13 | G135: Federal Shipping | H135: 7.99 | I135: LILA-Supermercado | J135: Carrera 52 con Ave. Bolívar #65-98 Llano Largo | K135: Barquisimeto | L135: Venezuela | M135: 0
A136: 10382 | B136: Ernst Handel | C136: Peacock, Margaret | D136: 1996-12-13 | E136: 1997-01-10 | F136: 1996-12-16 | G136: Speedy Express | H136: 94.77 | I136: Ernst Handel | J136: Kirchgasse 6 | K136: Graz | L136: Austria | M136: 179314
A137: 10383 | B137: Around the Horn | C137: Callahan, Laura | D137: 1996-12-16 | E137: 1997-01-13 | F137: 1996-12-18 | G137: Federal Shipping | H137: 34.24 | I137: Around the Horn | J137: Brook Farm Stratford St. Mary | K137: Colchester | L137: Reino Unido | M137: 48982
A138: 10384 | B138: Berglunds snabbköp | C138: Leverling, Janet | D138: 1996-12-16 | E138: 1997-01-13 | F138: 1996-12-20 | G138: Federal Shipping | H138: 168.64 | I138: Berglunds snabbköp | J138: Berguvsvägen 8 | K138: Luleå | L138: Suecia | M138: 46400
A139: 10385 | B139: Split Rail Beer & Ale | C139: Davolio, Nancy | D139: 1996-12-17 | E139: 1997-01-14 | F139: 1996-12-23 | G139: United Package | H139: 30.96 | I139: Split Rail Beer & Ale | J139: P.O. Box 555 | K139: Lander | L139: Estados Unidos | M139: 45813.12
A140: 10386 | B140: Familia Arquibaldo | C140: Dodsworth, Anne | D140: 1996-12-18 | E140: 1997-01-01 | F140: 1996-12-25 | G140: Federal Shipping | H140: 13.99 | I140: Familia Arquibaldo | J140: Rua Orós, 92 | K140: São Paulo | L140: Brasil | M140: 12604.4
A141: 10387 | B141: Santé Gourmet | C141: Davolio, Nancy | D141: 1996-12-18 | E141: 1997-01-15 | F141: 1996-12-20 | G141: United Package | H141: 93.63 | I141: Santé Gourmet | J141: Erling Skakkes gate 78 | K141: Stavern | L141: Noruega | M141: 161138.4
A142: 10388 | B142: Seven Seas Imports | C142: Fuller, Andrew | D142: 1996-12-19 | E142: 1997-01-16 | F142: 1996-12-20 | G142: Speedy Express | H142: 34.86 | I142: Seven Seas Imports | J142: 90 Wadhurst Rd. | K142: London | L142: Reino Unido | M142: 24084.96
A143: 10389 | B143: Bottom-Dollar Markets | C143: Peacock, Margaret | D143: 1996-12-20 | E143: 1997-01-17 | F143: 1996-12-24 | G143: United Package | H143: 47.42 | I143: Bottom-Dollar Markets | J143: 23 Tsawassen Blvd. | K143: Tsawassen | L143: Canadá | M143: 56652.8
A144: 10390 | B144: Ernst Handel | C144: Suyama, Michael | D144: 1996-12-23 | E144: 1997-01-20 | F144: 1996-12-26 | G144: Speedy Express | H144: 126.38 | I144: Ernst Handel | J144: Kirchgasse 6 | K144: Graz | L144: Austria | M144: 24315.12
A145: 10391 | B145: Drachenblut Delikatessen | C145: Leverling, Janet | D145: 1996-12-23 | E145: 1997-01-20 | F145: 1996-12-31 | G145: Federal Shipping | H145: 5.45 | I145: Drachenblut Delikatessen | J145: Walserweg 21 | K145: Aachen | L145: Alemania | M145: 15595.2
A146: 10392 | B146: Piccolo und mehr | C146: Fuller, Andrew | D146: 1996-12-24 | E146: 1997-01-21 | F146: 1997-01-01 | G146: Federal Shipping | H146: 122.46 | I146: Piccolo und mehr | J146: Geislweg 14 | K146: Salzburg | L146: Austria | M146: 1094.4
A147: 10393 | B147: Save-a-lot Markets | C147: Davolio, Nancy | D147: 1996-12-25 | E147: 1997-01-22 | F147: 1997-01-03 | G147: Federal Shipping | H147: 126.56 | I147: Save-a-lot Markets | J147: 187 Suffolk Ln. | K147: Boise | L147: Estados Unidos | M147: 46093.8
A148: 10394 | B148: Hungry Coyote Import Store | C148: Davolio, Nancy | D148: 1996-12-25 | E148: 1997-01-22 | F148: 1997-01-03 | G148: Federal Shipping | H148: 30.34 | I148: Hungry Coyote Import Store | J148: City Center Plaza 516 Main St. | K148: Elgin | L148: Estados Unidos | M148: 12768
A149: 10395 | B149: HILARIÓN-Abastos | C149: Suyama, Michael | D149: 1996-12-26 | E149: 1997-01-23 | F149: 1997-01-03 | G149: Speedy Express | H149: 184.41 | I149: HILARIÓN-Abastos | J149: Carrera 22 con Ave. Carlos Soublette #8-35 | K149: San Cristóbal | L149: Venezuela | M149: 51603.84
A150: 10396 | B150: Frankenversand | C150: Davolio, Nancy | D150: 1996-12-27 | E150: 1997-01-10 | F150: 1997-01-06 | G150: Federal Shipping | H150: 135.35 | I150: Frankenversand | J150: Berliner Platz 43 | K150: München | L150: Alemania | M150: 89135.6
A151: 10397 | B151: Princesa Isabel Vinhos | C151: Buchanan, Steven | D151: 1996-12-27 | E151: 1997-01-24 | F151: 1997-01-02 | G151: Speedy Express | H151: 60.26 | I151: Princesa Isabel Vinhos | J151: Estrada da saúde n. 58 | K151: Lisboa | L151: Portugal | M151: 45487.92
A152: 10398 | B152: Save-a-lot Markets | C152: Fuller, Andrew | D152: 1996-12-30 | E152: 1997-01-27 | F152: 1997-01-09 | G152: Federal Shipping | H152: 89.16 | I152: Save-a-lot Markets | J152: 187 Suffolk Ln. | K152: Boise | L152: Estados Unidos | M152: 19543.68
A153: 10399 | B153: Vaffeljernet | C153: Callahan, Laura | D153: 1996-12-31 | E153: 1997-01-14 | F153: 1997-01-08 | G153: Federal Shipping | H153: 27.36 | I153: Vaffeljernet | J153: Smagsløget 45 | K153: Århus | L153: Dinamarca | M153: 70780.4
A154: 10400 | B154: Eastern Connection | C154: Davolio, Nancy | D154: 1997-01-01 | E154: 1997-01-29 | F154: 1997-01-16 | G154: Federal Shipping | H154: 83.93 | I154: Eastern Connection | J154: 35 King George | K154: London | L154: Reino Unido | M154: 140679.6
A155: 10401 | B155: Rattlesnake Canyon Grocery | C155: Davolio, Nancy | D155: 1997-01-01 | E155: 1997-01-29 | F155: 1997-01-10 | G155: Speedy Express | H155: 12.51 | I155: Rattlesnake Canyon Grocery | J155: 2817 Milton Dr. | K155: Albuquerque | L155: Estados Unidos | M155: 148866.4
A156: 10402 | B156: Ernst Handel | C156: Callahan, Laura | D156: 1997-01-02 | E156: 1997-02-13 | F156: 1997-01-10 | G156: United Package | H156: 67.88 | I156: Ernst Handel | J156: Kirchgasse 6 | K156: Graz | L156: Austria | M156: 60817.5
A157: 10403 | B157: Ernst Handel | C157: Peacock, Margaret | D157: 1997-01-03 | E157: 1997-01-31 | F157: 1997-01-09 | G157: Federal Shipping | H157: 73.79 | I157: Ernst Handel | J157: Kirchgasse 6 | K157: Graz | L157: Austria | M157: 36041.53
A158: 10404 | B158: Magazzini Alimentari Riuniti | C158: Fuller, Andrew | D158: 1997-01-03 | E158: 1997-01-31 | F158: 1997-01-08 | G158: Speedy Express | H158: 155.97 | I158: Magazzini Alimentari Riuniti | J158: Via Ludovico il Moro 22 | K158: Bérgamo | L158: Italia | M158: 37472.56
A159: 10405 | B159: LINO-Delicateses | C159: Davolio, Nancy | D159: 1997-01-06 | E159: 1997-02-03 | F159: 1997-01-22 | G159: Speedy Express | H159: 34.82 | I159: LINO-Delicateses | J159: Ave. 5 de Mayo Porlamar | K159: I. de Margarita | L159: Venezuela | M159: 17368
A160: 10406 | B160: Queen Cozinha | C160: King, Robert | D160: 1997-01-07 | E160: 1997-02-18 | F160: 1997-01-13 | G160: Speedy Express | H160: 108.04 | I160: Queen Cozinha | J160: Alameda dos Canàrios, 891 | K160: São Paulo | L160: Brasil | M160: 55229.04
A161: 10407 | B161: Ottilies Käseladen | C161: Fuller, Andrew | D161: 1997-01-07 | E161: 1997-02-04 | F161: 1997-01-30 | G161: United Package | H161: 91.48 | I161: Ottilies Käseladen | J161: Mehrheimerstr. 369 | K161: Köln | L161: Alemania | M161: 114628.8
A162: 10408 | B162: Folies gourmandes | C162: Callahan, Laura | D162: 1997-01-08 | E162: 1997-02-05 | F162: 1997-01-14 | G162: Speedy Express | H162: 11.26 | I162: Folies gourmandes | J162: 184, chaussée de Tournai | K162: Lille | L162: Francia | M162: 76806.2
A163: 10409 | B163: Océano Atlántico Ltda. | C163: Leverling, Janet | D163: 1997-01-09 | E163: 1997-02-06 | F163: 1997-01-14 | G163: Speedy Express | H163: 29.83 | I163: Océano Atlántico Ltda. | J163: Ing. Gustavo Moncada 8585 Piso 20-A | K163: Buenos Aires | L163: Argentina | M163: 35163.6
A164: 10410 | B164: Bottom-Dollar Markets | C164: Leverling, Janet | D164: 1997-01-10 | E164: 1997-02-07 | F164: 1997-01-15 | G164: Federal Shipping | H164: 2.4 | I164: Bottom-Dollar Markets | J164: 23 Tsawassen Blvd. | K164: Tsawassen | L164: Canadá | M164: 70320
A165: 10411 | B165: Bottom-Dollar Markets | C165: Dodsworth, Anne | D165: 1997-01-10 | E165: 1997-02-07 | F165: 1997-01-21 | G165: Federal Shipping | H165: 23.65 | I165: Bottom-Dollar Markets | J165: 23 Tsawassen Blvd. | K165: Tsawassen | L165: Canadá | M165: 35216.8
A166: 10412 | B166: Wartian Herkku | C166: Callahan, Laura | D166: 1997-01-13 | E166: 1997-02-10 | F166: 1997-01-15 | G166: United Package | H166: 3.77 | I166: Wartian Herkku | J166: Torikatu 38 | K166: Oulu | L166: Finlandia | M166: 21159.36
A167: 10413 | B167: La maison d'Asie | C167: Leverling, Janet | D167: 1997-01-14 | E167: 1997-02-11 | F167: 1997-01-16 | G167: United Package | H167: 95.66 | I167: La maison d'Asie | J167: 1 rue Alsace-Lorraine | K167: Toulouse | L167: Francia | M167: 11577.6
A168: 10414 | B168: Familia Arquibaldo | C168: Fuller, Andrew | D168: 1997-01-14 | E168: 1997-02-11 | F168: 1997-01-17 | G168: Federal Shipping | H168: 21.48 | I168: Familia Arquibaldo | J168: Rua Orós, 92 | K168: São Paulo | L168: Brasil | M168: 10406.475
A169: 10415 | B169: Hungry Coyote Import Store | C169: Leverling, Janet | D169: 1997-01-15 | E169: 1997-02-12 | F169: 1997-01-24 | G169: Speedy Express | H169: 0.2 | I169: Hungry Coyote Import Store | J169: City Center Plaza 516 Main St. | K169: Elgin | L169: Estados Unidos | M169: 104725.2
A170: 10416 | B170: Wartian Herkku | C170: Callahan, Laura | D170: 1997-01-16 | E170: 1997-02-13 | F170: 1997-01-27 | G170: Federal Shipping | H170: 22.72 | I170: Wartian Herkku | J170: Torikatu 38 | K170: Oulu | L170: Finlandia | M170: 41238.1
A171: 10417 | B171: Simons bistro | C171: Peacock, Margaret | D171: 1997-01-16 | E171: 1997-02-13 | F171: 1997-01-28 | G171: Federal Shipping | H171: 70.29 | I171: Simons bistro | J171: Vinbæltet 34 | K171: København | L171: Dinamarca | M171: 243123.7
A172: 10418 | B172: QUICK-Stop | C172: Peacock, Margaret | D172: 1997-01-17 | E172: 1997-02-14 | F172: 1997-01-24 | G172: Speedy Express | H172: 17.55 | I172: QUICK-Stop | J172: Taucherstraße 10 | K172: Cunewalde | L172: Alemania | M172: 52288
A173: 10419 | B173: Richter Supermarkt | C173: Peacock, Margaret | D173: 1997-01-20 | E173: 1997-02-17 | F173: 1997-01-30 | G173: United Package | H173: 137.35 | I173: Richter Supermarkt | J173: Starenweg 5 | K173: Genève | L173: Suiza | M173: 59330.16
A174: 10420 | B174: Wellington Importadora | C174: Leverling, Janet | D174: 1997-01-21 | E174: 1997-02-18 | F174: 1997-01-27 | G174: Speedy Express | H174: 44.12 | I174: Wellington Importadora | J174: Rua do Mercado, 12 | K174: Resende | L174: Brasil | M174: 224393.76
A175: 10421 | B175: Que Delícia | C175: Callahan, Laura | D175: 1997-01-21 | E175: 1997-03-04 | F175: 1997-01-27 | G175: Speedy Express | H175: 99.23 | I175: Que Delícia | J175: Rua da Panificadora, 12 | K175: Río de Janeiro | L175: Brasil | M175: 35377.35
A176: 10422 | B176: Franchi S.p.A. | C176: Fuller, Andrew | D176: 1997-01-22 | E176: 1997-02-19 | F176: 1997-01-31 | G176: Speedy Express | H176: 3.02 | I176: Franchi S.p.A. | J176: Via Monte Bianco 34 | K176: Torino | L176: Italia | M176: 9188.1
A177: 10423 | B177: Gourmet Lanchonetes | C177: Suyama, Michael | D177: 1997-01-23 | E177: 1997-02-06 | F177: 1997-02-24 | G177: Federal Shipping | H177: 24.5 | I177: Gourmet Lanchonetes | J177: Av. Brasil, 442 | K177: Campinas | L177: Brasil | M177: 26118
A178: 10424 | B178: Mère Paillarde | C178: King, Robert | D178: 1997-01-23 | E178: 1997-02-20 | F178: 1997-01-27 | G178: United Package | H178: 370.61 | I178: Mère Paillarde | J178: 43 rue St. Laurent | K178: Montréal | L178: Canadá | M178: 88823.04
A179: 10425 | B179: La maison d'Asie | C179: Suyama, Michael | D179: 1997-01-24 | E179: 1997-02-21 | F179: 1997-02-14 | G179: United Package | H179: 7.93 | I179: La maison d'Asie | J179: 1 rue Alsace-Lorraine | K179: Toulouse | L179: Francia | M179: 74440.8
A180: 10426 | B180: Galería del gastrónomo | C180: Peacock, Margaret | D180: 1997-01-27 | E180: 1997-02-24 | F180: 1997-02-06 | G180: Speedy Express | H180: 18.69 | I180: Galería del gastronómo | J180: Rambla de Cataluña, 23 | K180: Barcelona | L180: España | M180: 42560
A181: 10427 | B181: Piccolo und mehr | C181: Peacock, Margaret | D181: 1997-01-27 | E181: 1997-02-24 | F181: 1997-03-03 | G181: United Package | H181: 31.29 | I181: Piccolo und mehr | J181: Geislweg 14 | K181: Salzburg | L181: Austria | M181: 11457.6
A182: 10428 | B182: Reggiani Caseifici | C182: King, Robert | D182: 1997-01-28 | E182: 1997-02-25 | F182: 1997-02-04 | G182: Speedy Express | H182: 11.09 | I182: Reggiani Caseifici | J182: Strada Provinciale 124 | K182: Reggio Emilia | L182: Italia | M182: 2534.4
A183: 10429 | B183: Hungry Owl All-Night Grocers | C183: Leverling, Janet | D183: 1997-01-29 | E183: 1997-03-12 | F183: 1997-02-07 | G183: United Package | H183: 56.63 | I183: Hungry Owl All-Night Grocers | J183: 8 Johnstown Road | K183: Cork | L183: Irlanda | M183: 22512.75
A184: 10430 | B184: Ernst Handel | C184: Peacock, Margaret | D184: 1997-01-30 | E184: 1997-02-13 | F184: 1997-02-03 | G184: Speedy Express | H184: 458.78 | I184: Ernst Handel | J184: Kirchgasse 6 | K184: Graz | L184: Austria | M184: 34534.4
A185: 10431 | B185: Bottom-Dollar Markets | C185: Peacock, Margaret | D185: 1997-01-30 | E185: 1997-02-13 | F185: 1997-02-07 | G185: United Package | H185: 44.17 | I185: Bottom-Dollar Markets | J185: 23 Tsawassen Blvd. | K185: Tsawassen | L185: Canadá | M185: 10887.3
A186: 10432 | B186: Split Rail Beer & Ale | C186: Leverling, Janet | D186: 1997-01-31 | E186: 1997-02-14 | F186: 1997-02-07 | G186: United Package | H186: 4.34 | I186: Split Rail Beer & Ale | J186: P.O. Box 555 | K186: Lander | L186: Estados Unidos | M186: 5179.2
A187: 10433 | B187: Princesa Isabel Vinhos | C187: Leverling, Janet | D187: 1997-02-03 | E187: 1997-03-03 | F187: 1997-03-04 | G187: Federal Shipping | H187: 73.83 | I187: Princesa Isabel Vinhos | J187: Estrada da saúde n. 58 | K187: Lisboa | L187: Portugal | M187: 14987.2
A188: 10434 | B188: Folk och fä HB | C188: Leverling, Janet | D188: 1997-02-03 | E188: 1997-03-03 | F188: 1997-02-13 | G188: United Package | H188: 17.92 | I188: Folk och fä HB | J188: Åkergatan 24 | K188: Bräcke | L188: Suecia | M188: 21815.04
A189: 10435 | B189: Consolidated Holdings | C189: Callahan, Laura | D189: 1997-02-04 | E189: 1997-03-18 | F189: 1997-02-07 | G189: United Package | H189: 9.21 | I189: Consolidated Holdings | J189: Berkeley Gardens 12 Brewery | K189: London | L189: Reino Unido | M189: 71264
A190: 10436 | B190: Blondel père et fils | C190: Leverling, Janet | D190: 1997-02-05 | E190: 1997-03-05 | F190: 1997-02-11 | G190: United Package | H190: 156.66 | I190: Blondel père et fils | J190: 24, place Kléber | K190: Strasbourg | L190: Francia | M190: 35196.6
A191: 10437 | B191: Wartian Herkku | C191: Callahan, Laura | D191: 1997-02-05 | E191: 1997-03-05 | F191: 1997-02-12 | G191: Speedy Express | H191: 19.97 | I191: Wartian Herkku | J191: Torikatu 38 | K191: Oulu | L191: Finlandia | M191: 28820
A192: 10438 | B192: Toms Spezialitäten | C192: Leverling, Janet | D192: 1997-02-06 | E192: 1997-03-06 | F192: 1997-02-14 | G192: United Package | H192: 8.24 | I192: Toms Spezialitäten | J192: Luisenstr. 48 | K192: Münster | L192: Alemania | M192: 20036.08
A193: 10439 | B193: Mère Paillarde | C193: Suyama, Michael | D193: 1997-02-07 | E193: 1997-03-07 | F193: 1997-02-10 | G193: Federal Shipping | H193: 4.07 | I193: Mère Paillarde | J193: 43 rue St. Laurent | K193: Montréal | L193: Canadá | M193: 81519.8
A194: 10440 | B194: Save-a-lot Markets | C194: Peacock, Margaret | D194: 1997-02-10 | E194: 1997-03-10 | F194: 1997-02-28 | G194: United Package | H194: 86.53 | I194: Save-a-lot Markets | J194: 187 Suffolk Ln. | K194: Boise | L194: Estados Unidos | M194: =SUMIF(NroPedD,A194,Monto) -> 122127.15
A195: 10441 | B195: Old World Delicatessen | C195: Leverling, Janet | D195: 1997-02-10 | E195: 1997-03-24 | F195: 1997-03-14 | G195: United Package | H195: 73.02 | I195: Old World Delicatessen | J195: 2743 Bering St. | K195: Anchorage | L195: Estados Unidos | M195: 14391
A196: 10442 | B196: Ernst Handel | C196: Leverling, Janet | D196: 1997-02-11 | E196: 1997-03-11 | F196: 1997-02-18 | G196: United Package | H196: 47.94 | I196: Ernst Handel | J196: Kirchgasse 6 | K196: Graz | L196: Austria | M196: 64309
A197: 10443 | B197: Reggiani Caseifici | C197: Callahan, Laura | D197: 1997-02-12 | E197: 1997-03-12 | F197: 1997-02-14 | G197: Speedy Express | H197: 13.95 | I197: Reggiani Caseifici | J197: Strada Provinciale 124 | K197: Reggio Emilia | L197: Italia | M197: 24744.16
A198: 10444 | B198: Berglunds snabbköp | C198: Leverling, Janet | D198: 1997-02-12 | E198: 1997-03-12 | F198: 1997-02-21 | G198: Federal Shipping | H198: 3.5 | I198: Berglunds snabbköp | J198: Berguvsvägen 8 | K198: Luleå | L198: Suecia | M198: 56611.3
A199: 10445 | B199: Berglunds snabbköp | C199: Leverling, Janet | D199: 1997-02-13 | E199: 1997-03-13 | F199: 1997-02-20 | G199: Speedy Express | H199: 9.3 | I199: Berglunds snabbköp | J199: Berguvsvägen 8 | K199: Luleå | L199: Suecia | M199: 28116
A200: 10446 | B200: Toms Spezialitäten | C200: Suyama, Michael | D200: 1997-02-14 | E200: 1997-03-14 | F200: 1997-02-19 | G200: Speedy Express | H200: 14.68 | I200: Toms Spezialitäten | J200: Luisenstr. 48 | K200: Münster | L200: Alemania | M200: 48951
... 631 more rows

Sheet Detalle
A1: NroPedido | B1: Producto | C1: Precio por unidad | D1: Cantidad | E1: Descuento | F1: Monto
A2: 10248 | B2: Queso Cabrales | C2: 14 | D2: 1309 | E2: 0 | F2: =C2*D2-C2*D2*E2 -> 18326
A3: 10248 | B3: Tallarines de Singapur | C3: 9.8 | D3: 3667 | E3: 0 | F3: =C3*D3-C3*D3*E3 -> 35936.6
A4: 10248 | B4: Queso Mozzarella Giovanni | C4: 34.8 | D4: 179 | E4: 0 | F4: 6229.2
A5: 10249 | B5: Cuajada de judías | C5: 18.6 | D5: 1026 | E5: 0 | F5: 19083.6
A6: 10249 | B6: Manzanas secas Manjimup | C6: 42.4 | D6: 2674 | E6: 0 | F6: 113377.6
A7: 10250 | B7: Crema de almejas estilo Nueva Inglaterra | C7: 7.7 | D7: 495 | E7: 0 | F7: 3811.5
A8: 10250 | B8: Manzanas secas Manjimup | C8: 42.4 | D8: 297 | E8: 0.15 | F8: 10703.88
A9: 10250 | B9: Salsa de pimiento picante de Luisiana | C9: 16.8 | D9: 1448 | E9: 0.15 | F9: 20677.44
A10: 10251 | B10: Pan de centeno crujiente estilo Gustaf's | C10: 16.8 | D10: 120 | E10: 0.05 | F10: 1915.2
A11: 10251 | B11: Raviolis Angelo | C11: 15.6 | D11: 2355 | E11: 0.05 | F11: 34901.1
A12: 10251 | B12: Salsa de pimiento picante de Luisiana | C12: 16.8 | D12: 721 | E12: 0 | F12: 12112.8
A13: 10252 | B13: Mermelada de Sir Rodney's | C13: 64.8 | D13: 1344 | E13: 0.05 | F13: 82736.64
A14: 10252 | B14: Queso de cabra | C14: 2 | D14: 1020 | E14: 0.05 | F14: 1938
A15: 10252 | B15: Camembert Pierrot | C15: 27.2 | D15: 246 | E15: 0 | F15: 6691.2
A16: 10253 | B16: Queso gorgonzola Telino | C16: 10 | D16: 405 | E16: 0 | F16: 4050
A17: 10253 | B17: Licor verde Chartreuse | C17: 14.4 | D17: 632 | E17: 0 | F17: 9100.8
A18: 10253 | B18: Regaliz | C18: 16 | D18: 2227 | E18: 0 | F18: 35632
A19: 10254 | B19: Refresco Guaraná Fantástica | C19: 3.6 | D19: 560 | E19: 0.15 | F19: 1713.6
A20: 10254 | B20: Paté chino | C20: 19.2 | D20: 3173 | E20: 0.15 | F20: 51783.36
A21: 10254 | B21: Queso de soja Longlife | C21: 8 | D21: 210 | E21: 0 | F21: 1680
A22: 10255 | B22: Cerveza tibetana Barley | C22: 15.2 | D22: 408 | E22: 0 | F22: 6201.6
A23: 10255 | B23: Postre de merengue Pavlova | C23: 13.9 | D23: 1440 | E23: 0 | F23: 20016
A24: 10255 | B24: Escabeche de arenque | C24: 15.2 | D24: 1029 | E24: 0 | F24: 15640.8
A25: 10255 | B25: Raclet de queso Courdavault | C25: 44 | D25: 679 | E25: 0 | F25: 29876
A26: 10256 | B26: Empanada de carne | C26: 26.2 | D26: 1118 | E26: 0 | F26: 29291.6
A27: 10256 | B27: Salsa verde original Frankfurter | C27: 10.4 | D27: 680 | E27: 0 | F27: 7072
A28: 10257 | B28: Chocolate Schoggi | C28: 35.1 | D28: 868 | E28: 0 | F28: 30466.8
A29: 10257 | B29: Licor verde Chartreuse | C29: 14.4 | D29: 2534 | E29: 0 | F29: 36489.6
A30: 10257 | B30: Salsa verde original Frankfurter | C30: 10.4 | D30: 1224 | E30: 0 | F30: 12729.6
A31: 10258 | B31: Cerveza tibetana Barley | C31: 15.2 | D31: 1440 | E31: 0.2 | F31: 17510.4
A32: 10258 | B32: Mezcla Gumbo del chef Anton | C32: 17 | D32: 0 | E32: 0.2 | F32: 0
A33: 10258 | B33: Queso Mascarpone Fabioli | C33: 25.6 | D33: 1624 | E33: 0.2 | F33: 33259.52
A34: 10259 | B34: Bollos de Sir Rodney's | C34: 8 | D34: 565 | E34: 0 | F34: 4520
A35: 10259 | B35: Salmón ahumado Gravad | C35: 20.8 | D35: 3059 | E35: 0 | F35: 63627.2
A36: 10260 | B36: Crema de almejas estilo Nueva Inglaterra | C36: 7.7 | D36: 0 | E36: 0.25 | F36: 0
A37: 10260 | B37: Raviolis Angelo | C37: 15.6 | D37: 1311 | E37: 0 | F37: 20451.6
A38: 10260 | B38: Tarta de azúcar | C38: 39.4 | D38: 960 | E38: 0.25 | F38: 28368
A39: 10260 | B39: Cerveza Outback | C39: 12 | D39: 0 | E39: 0.25 | F39: 0
A40: 10261 | B40: Bollos de Sir Rodney's | C40: 8 | D40: 300 | E40: 0 | F40: 2400
A41: 10261 | B41: Cerveza negra Steeleye | C41: 14.4 | D41: 52 | E41: 0 | F41: 748.8
A42: 10262 | B42: Mezcla Gumbo del chef Anton | C42: 17 | D42: 143 | E42: 0.2 | F42: 1944.8
A43: 10262 | B43: Peras secas orgánicas del tío Bob | C43: 24 | D43: 315 | E43: 0 | F43: 7560
A44: 10262 | B44: Gnocchi de la abuela Alicia | C44: 30.4 | D44: 472 | E44: 0 | F44: 14348.8
A45: 10263 | B45: Postre de merengue Pavlova | C45: 13.9 | D45: 459 | E45: 0.25 | F45: 4785.075
A46: 10263 | B46: Refresco Guaraná Fantástica | C46: 3.6 | D46: 1834 | E46: 0 | F46: 6602.4
A47: 10263 | B47: Arenque blanco del noroeste | C47: 20.7 | D47: 1848 | E47: 0.25 | F47: 28690.2
A48: 10263 | B48: Queso de soja Longlife | C48: 8 | D48: 225 | E48: 0.25 | F48: 1350
A49: 10264 | B49: Cerveza tibetana Barley | C49: 15.2 | D49: 2584 | E49: 0 | F49: 39276.8
A50: 10264 | B50: Crema de almejas estilo Nueva Inglaterra | C50: 7.7 | D50: 1410 | E50: 0.15 | F50: 9228.45
A51: 10265 | B51: Cordero Alice Springs | C51: 31.2 | D51: 960 | E51: 0 | F51: 29952
A52: 10265 | B52: Cerveza Outback | C52: 12 | D52: 172 | E52: 0 | F52: 2064
A53: 10266 | B53: Queso Manchego La Pastora | C53: 30.4 | D53: 1353 | E53: 0.05 | F53: 39074.64
A54: 10267 | B54: Carne de cangrejo de Boston | C54: 14.7 | D54: 480 | E54: 0 | F54: 7056
A55: 10267 | B55: Raclet de queso Courdavault | C55: 44 | D55: 3211 | E55: 0.15 | F55: 120091.4
A56: 10267 | B56: Licor Cloudberry | C56: 14.4 | D56: 1742 | E56: 0.15 | F56: 21322.08
A57: 10268 | B57: Salchicha Thüringer | C57: 99 | D57: 0 | E57: 0 | F57: 0
A58: 10268 | B58: Queso Mozzarella Giovanni | C58: 27.8 | D58: 109 | E58: 0 | F58: 3030.2
A59: 10269 | B59: Queso de cabra | C59: 2 | D59: 121 | E59: 0.05 | F59: 229.9
A60: 10269 | B60: Queso Mozzarella Giovanni | C60: 27.8 | D60: 1157 | E60: 0.05 | F60: 30556.37
A61: 10270 | B61: Escabeche de arenque | C61: 15.2 | D61: 339 | E61: 0 | F61: 5152.8
A62: 10270 | B62: Café de Malasia | C62: 36.8 | D62: 511 | E62: 0 | F62: 18804.8
A63: 10271 | B63: Queso de cabra | C63: 2 | D63: 1690 | E63: 0 | F63: 3380
A64: 10272 | B64: Mermelada de Sir Rodney's | C64: 64.8 | D64: 312 | E64: 0 | F64: 20217.6
A65: 10272 | B65: Queso gorgonzola Telino | C65: 10 | D65: 344 | E65: 0 | F65: 3440
A66: 10272 | B66: Queso Mozzarella Giovanni | C66: 27.8 | D66: 434 | E66: 0 | F66: 12065.2
A67: 10273 | B67: Pez espada | C67: 24.8 | D67: 816 | E67: 0.05 | F67: =C67*D67-C67*D67*E67 -> 19224.96
A68: 10273 | B68: Queso gorgonzola Telino | C68: 10 | D68: 2070 | E68: 0.05 | F68: 19665
A69: 10273 | B69: Queso de cabra | C69: 2 | D69: 300 | E69: 0 | F69: 600
A70: 10273 | B70: Carne de cangrejo de Boston | C70: 14.7 | D70: 330 | E70: 0.05 | F70: 4608.45
A71: 10273 | B71: Licor Cloudberry | C71: 14.4 | D71: 3528 | E71: 0.05 | F71: 48263.04
A72: 10274 | B72: Crema de queso Fløtemys | C72: 17.2 | D72: 2430 | E72: 0 | F72: 41796
A73: 10274 | B73: Queso Mozzarella Giovanni | C73: 27.8 | D73: 1116 | E73: 0 | F73: 31024.8
A74: 10275 | B74: Refresco Guaraná Fantástica | C74: 3.6 | D74: 994 | E74: 0.05 | F74: 3399.48
A75: 10275 | B75: Raclet de queso Courdavault | C75: 44 | D75: 1080 | E75: 0.05 | F75: 45144
A76: 10276 | B76: Pez espada | C76: 24.8 | D76: 392 | E76: 0 | F76: 9721.6
A77: 10276 | B77: Algas Konbu | C77: 4.8 | D77: 816 | E77: 0 | F77: 3916.8
A78: 10277 | B78: Col fermentada Rössle | C78: 36.4 | D78: 1095 | E78: 0 | F78: 39858
A79: 10277 | B79: Tarta de azúcar | C79: 39.4 | D79: 720 | E79: 0 | F79: 28368
A80: 10278 | B80: Azúcar negra Malacca | C80: 15.5 | D80: 1736 | E80: 0 | F80: 26908
A81: 10278 | B81: Raclet de queso Courdavault | C81: 44 | D81: 3104 | E81: 0 | F81: 136576
A82: 10278 | B82: Sandwich de vegetales | C82: 35.1 | D82: 1824 | E82: 0 | F82: 64022.4
A83: 10278 | B83: Caviar rojo | C83: 12 | D83: 522 | E83: 0 | F83: 6264
A84: 10279 | B84: Cordero Alice Springs | C84: 31.2 | D84: 3349 | E84: 0.25 | F84: 78366.6
A85: 10280 | B85: Refresco Guaraná Fantástica | C85: 3.6 | D85: 282 | E85: 0 | F85: 1015.2
A86: 10280 | B86: Paté chino | C86: 19.2 | D86: 1068 | E86: 0 | F86: 20505.6
A87: 10280 | B87: Cerveza Klosterbier Rhönbräu | C87: 6.2 | D87: 258 | E87: 0 | F87: 1599.6
A88: 10281 | B88: Pastas de té de chocolate | C88: 7.3 | D88: 188 | E88: 0 | F88: 1372.4
A89: 10281 | B89: Refresco Guaraná Fantástica | C89: 3.6 | D89: 1292 | E89: 0 | F89: 4651.2
A90: 10281 | B90: Cerveza negra Steeleye | C90: 14.4 | D90: 3024 | E90: 0 | F90: 43545.6
A91: 10282 | B91: Arenque blanco del noroeste | C91: 20.7 | D91: 1224 | E91: 0 | F91: 25336.8
A92: 10282 | B92: Raviolis Angelo | C92: 15.6 | D92: 148 | E92: 0 | F92: 2308.8
A93: 10283 | B93: Salsa de soja baja en sodio | C93: 12.4 | D93: 2175 | E93: 0 | F93: 26970
A94: 10283 | B94: Pastas de té de chocolate | C94: 7.3 | D94: 0 | E94: 0 | F94: 0
A95: 10283 | B95: Camembert Pierrot | C95: 27.2 | D95: 531 | E95: 0 | F95: 14443.2
A96: 10283 | B96: Queso Mozzarella Giovanni | C96: 27.8 | D96: 378 | E96: 0 | F96: 10508.4
A97: 10284 | B97: Chocolate Schoggi | C97: 35.1 | D97: 728 | E97: 0.25 | F97: 19164.6
A98: 10284 | B98: Azúcar negra Malacca | C98: 15.5 | D98: 1400 | E98: 0 | F98: 21700
A99: 10284 | B99: Camembert Pierrot | C99: 27.2 | D99: 1938 | E99: 0.25 | F99: 39535.2
A100: 10284 | B100: Cerveza Laughing Lumberjack | C100: 11.2 | D100: 455 | E100: 0.25 | F100: 3822
A101: 10285 | B101: Té Dharamsala | C101: 14.4 | D101: 0 | E101: 0.2 | F101: 0
A102: 10285 | B102: Carne de cangrejo de Boston | C102: 14.7 | D102: 1760 | E102: 0.2 | F102: 20697.6
A103: 10285 | B103: Empanada de carne | C103: 26.2 | D103: 177 | E103: 0.2 | F103: 3709.92
A104: 10286 | B104: Cerveza negra Steeleye | C104: 14.4 | D104: 531 | E104: 0 | F104: 7646.4
A105: 10286 | B105: Tarta de azúcar | C105: 39.4 | D105: 528 | E105: 0 | F105: 20803.2
A106: 10287 | B106: Postre de merengue Pavlova | C106: 13.9 | D106: 1952 | E106: 0.15 | F106: 23062.88
A107: 10287 | B107: Cerveza Sasquatch | C107: 11.2 | D107: 1143 | E107: 0 | F107: 12801.6
A108: 10287 | B108: Arenque salado | C108: 9.6 | D108: 994 | E108: 0.15 | F108: 8111.04
A109: 10288 | B109: Empanada de cerdo | C109: 5.9 | D109: 1602 | E109: 0.1 | F109: 8506.62
A110: 10288 | B110: Barras de pan de Escocia | C110: 10 | D110: 1596 | E110: 0.1 | F110: 14364
A111: 10289 | B111: Sirope de regaliz | C111: 8 | D111: 372 | E111: 0 | F111: 2976
A112: 10289 | B112: Bollos de pan de Wimmer | C112: 26.6 | D112: 520 | E112: 0 | F112: 13832
A113: 10290 | B113: Mezcla Gumbo del chef Anton | C113: 17 | D113: 245 | E113: 0 | F113: 4165
A114: 10290 | B114: Salchicha Thüringer | C114: 99 | D114: 1032 | E114: 0 | F114: 102168
A115: 10290 | B115: Regaliz | C115: 16 | D115: 226 | E115: 0 | F115: 3616
A116: 10290 | B116: Salsa verde original Frankfurter | C116: 10.4 | D116: 1612 | E116: 0 | F116: 16764.8
A117: 10291 | B117: Algas Konbu | C117: 4.8 | D117: 1332 | E117: 0.1 | F117: 5754.24
A118: 10291 | B118: Azúcar negra Malacca | C118: 15.5 | D118: 1836 | E118: 0.1 | F118: 25612.2
A119: 10291 | B119: Manzanas secas Manjimup | C119: 42.4 | D119: 550 | E119: 0.1 | F119: 20988
A120: 10292 | B120: Mermelada de Sir Rodney's | C120: 64.8 | D120: 234 | E120: 0 | F120: 15163.2
A121: 10293 | B121: Langostinos tigre Carnarvon | C121: 50 | D121: 611 | E121: 0 | F121: 30550
A122: 10293 | B122: Refresco Guaraná Fantástica | C122: 3.6 | D122: 1806 | E122: 0 | F122: 6501.6
A123: 10293 | B123: Sandwich de vegetales | C123: 35.1 | D123: 0 | E123: 0 | F123: 0
A124: 10293 | B124: Cerveza Klosterbier Rhönbräu | C124: 6.2 | D124: 180 | E124: 0 | F124: 1116
A125: 10294 | B125: Té Dharamsala | C125: 14.4 | D125: 1336 | E125: 0 | F125: 19238.4
A126: 10294 | B126: Cordero Alice Springs | C126: 31.2 | D126: 300 | E126: 0 | F126: 9360
A127: 10294 | B127: Café de Malasia | C127: 36.8 | D127: 186 | E127: 0 | F127: 6844.8
A128: 10294 | B128: Camembert Pierrot | C128: 27.2 | D128: 0 | E128: 0 | F128: 0
A129: 10294 | B129: Cerveza Klosterbier Rhönbräu | C129: 6.2 | D129: 1850 | E129: 0 | F129: 11470
A130: 10295 | B130: Gnocchi de la abuela Alicia | C130: 30.4 | D130: 865 | E130: 0 | F130: 26296
A131: 10296 | B131: Queso Cabrales | C131: 16.8 | D131: 2340 | E131: 0 | F131: =C131*D131-C131*D131*E131 -> 39312
A132: 10296 | B132: Postre de merengue Pavlova | C132: 13.9 | D132: 0 | E132: 0 | F132: 0
A133: 10296 | B133: Queso Gudbrandsdals | C133: 28.8 | D133: 1820 | E133: 0 | F133: 52416
A134: 10297 | B134: Licor verde Chartreuse | C134: 14.4 | D134: 79 | E134: 0 | F134: 1137.6
A135: 10297 | B135: Queso Mozzarella Giovanni | C135: 27.8 | D135: 2444 | E135: 0 | F135: 67943.2
A136: 10298 | B136: Cerveza tibetana Barley | C136: 15.2 | D136: 2682 | E136: 0 | F136: 40766.4
A137: 10298 | B137: Escabeche de arenque | C137: 15.2 | D137: 3059 | E137: 0.25 | F137: 34872.6
A138: 10298 | B138: Raclet de queso Courdavault | C138: 44 | D138: 346 | E138: 0.25 | F138: 11418
A139: 10298 | B139: Tarta de azúcar | C139: 39.4 | D139: 1500 | E139: 0 | F139: 59100
A140: 10299 | B140: Pastas de té de chocolate | C140: 7.3 | D140: 1190 | E140: 0 | F140: 8687
A141: 10299 | B141: Cerveza Outback | C141: 12 | D141: 3528 | E141: 0 | F141: 42336
A142: 10300 | B142: Especias picantes de Luisiana | C142: 13.6 | D142: 816 | E142: 0 | F142: 11097.6
A143: 10300 | B143: Barras de pan de Escocia | C143: 10 | D143: 321 | E143: 0 | F143: 3210
A144: 10301 | B144: Carne de cangrejo de Boston | C144: 14.7 | D144: 297 | E144: 0 | F144: 4365.9
A145: 10301 | B145: Gnocchi de la abuela Alicia | C145: 30.4 | D145: 760 | E145: 0 | F145: 23104
A146: 10302 | B146: Cordero Alice Springs | C146: 31.2 | D146: 384 | E146: 0 | F146: 11980.8
A147: 10302 | B147: Col fermentada Rössle | C147: 36.4 | D147: 297 | E147: 0 | F147: 10810.8
A148: 10302 | B148: Café de Malasia | C148: 36.8 | D148: 476 | E148: 0 | F148: 17516.8
A149: 10303 | B149: Carne de cangrejo de Boston | C149: 14.7 | D149: 492 | E149: 0.1 | F149: 6509.16
A150: 10303 | B150: Salsa de pimiento picante de Luisiana | C150: 16.8 | D150: 1360 | E150: 0.1 | F150: 20563.2
A151: 10303 | B151: Barras de pan de Escocia | C151: 10 | D151: 3000 | E151: 0.1 | F151: 27000
A152: 10304 | B152: Regaliz | C152: 16 | D152: 473 | E152: 0 | F152: 7568
A153: 10304 | B153: Raclet de queso Courdavault | C153: 44 | D153: 86 | E153: 0 | F153: 3784
A154: 10304 | B154: Crema de queso Fløtemys | C154: 17.2 | D154: 910 | E154: 0 | F154: 15652
A155: 10305 | B155: Langostinos tigre Carnarvon | C155: 50 | D155: 288 | E155: 0.1 | F155: 12960
A156: 10305 | B156: Salchicha Thüringer | C156: 99 | D156: 0 | E156: 0.1 | F156: 0
A157: 10305 | B157: Licor verde Chartreuse | C157: 14.4 | D157: 952 | E157: 0.1 | F157: 12337.92
A158: 10306 | B158: Arenque blanco del noroeste | C158: 20.7 | D158: 632 | E158: 0 | F158: 13082.4
A159: 10306 | B159: Empanada de carne | C159: 26.2 | D159: 608 | E159: 0 | F159: 15929.6
A160: 10306 | B160: Empanada de cerdo | C160: 5.9 | D160: 2160 | E160: 0 | F160: 12744
A161: 10307 | B161: Tarta de azúcar | C161: 39.4 | D161: 456 | E161: 0 | F161: 17966.4
A162: 10307 | B162: Barras de pan de Escocia | C162: 10 | D162: 2888 | E162: 0 | F162: 28880
A163: 10308 | B163: Queso Gudbrandsdals | C163: 28.8 | D163: 1232 | E163: 0 | F163: 35481.6
A164: 10308 | B164: Cerveza Outback | C164: 12 | D164: 165 | E164: 0 | F164: 1980
A165: 10309 | B165: Especias Cajun del chef Anton | C165: 17.6 | D165: 332 | E165: 0 | F165: 5843.2
A166: 10309 | B166: Mermelada de grosellas de la abuela | C166: 20 | D166: 2772 | E166: 0 | F166: 55440
A167: 10309 | B167: Tallarines de Singapur | C167: 11.2 | D167: 315 | E167: 0 | F167: 3528
A168: 10309 | B168: Café de Malasia | C168: 36.8 | D168: 672 | E168: 0 | F168: 24729.6
A169: 10309 | B169: Crema de queso Fløtemys | C169: 17.2 | D169: 627 | E169: 0 | F169: 10784.4
A170: 10310 | B170: Postre de merengue Pavlova | C170: 13.9 | D170: 1512 | E170: 0 | F170: 21016.8
A171: 10310 | B171: Tarta de azúcar | C171: 39.4 | D171: 380 | E171: 0 | F171: 14972
A172: 10311 | B172: Tallarines de Singapur | C172: 11.2 | D172: 459 | E172: 0 | F172: 5140.8
A173: 10311 | B173: Queso Gudbrandsdals | C173: 28.8 | D173: 490 | E173: 0 | F173: 14112
A174: 10312 | B174: Col fermentada Rössle | C174: 36.4 | D174: 2119 | E174: 0 | F174: 77131.6
A175: 10312 | B175: Café de Malasia | C175: 36.8 | D175: 2702 | E175: 0 | F175: 99433.6
A176: 10312 | B176: Empanada de carne | C176: 26.2 | D176: 0 | E176: 0 | F176: 0
A177: 10312 | B177: Cerveza Klosterbier Rhönbräu | C177: 6.2 | D177: 970 | E177: 0 | F177: 6014
A178: 10313 | B178: Escabeche de arenque | C178: 15.2 | D178: 1950 | E178: 0 | F178: 29640
A179: 10314 | B179: Queso Mascarpone Fabioli | C179: 25.6 | D179: 2295 | E179: 0.1 | F179: 52876.8
A180: 10314 | B180: Caracoles de Borgoña | C180: 10.6 | D180: 585 | E180: 0.1 | F180: 5580.9
A181: 10314 | B181: Tarta de azúcar | C181: 39.4 | D181: 1026 | E181: 0.1 | F181: 36381.96
A182: 10315 | B182: Cerveza Sasquatch | C182: 11.2 | D182: 666 | E182: 0 | F182: 7459.2
A183: 10315 | B183: Cerveza Outback | C183: 12 | D183: 3077 | E183: 0 | F183: 36924
A184: 10316 | B184: Crema de almejas estilo Nueva Inglaterra | C184: 7.7 | D184: 469 | E184: 0 | F184: 3611.3
A185: 10316 | B185: Tarta de azúcar | C185: 39.4 | D185: 278 | E185: 0 | F185: 10953.2
A186: 10317 | B186: Té Dharamsala | C186: 14.4 | D186: 328 | E186: 0 | F186: 4723.2
A187: 10318 | B187: Crema de almejas estilo Nueva Inglaterra | C187: 7.7 | D187: 627 | E187: 0 | F187: 4827.9
A188: 10318 | B188: Licor Cloudberry | C188: 14.4 | D188: 369 | E188: 0 | F188: 5313.6
A189: 10319 | B189: Cordero Alice Springs | C189: 31.2 | D189: 350 | E189: 0 | F189: 10920
A190: 10319 | B190: Col fermentada Rössle | C190: 36.4 | D190: 1860 | E190: 0 | F190: 67704
A191: 10319 | B191: Licor Cloudberry | C191: 14.4 | D191: 540 | E191: 0 | F191: 7776
A192: 10320 | B192: Crema de queso Fløtemys | C192: 17.2 | D192: 874 | E192: 0 | F192: 15032.8
A193: 10321 | B193: Cerveza negra Steeleye | C193: 14.4 | D193: 147 | E193: 0 | F193: 2116.8
A194: 10322 | B194: Cereales para Filo | C194: 5.6 | D194: 2478 | E194: 0 | F194: 13876.8
A195: 10323 | B195: Salsa de soja baja en sodio | C195: 12.4 | D195: 1265 | E195: 0 | F195: =C195*D195-C195*D195*E195 -> 15686
A196: 10323 | B196: Crema de chocolate y nueces NuNuCa | C196: 11.2 | D196: 2640 | E196: 0 | F196: 29568
A197: 10323 | B197: Licor verde Chartreuse | C197: 14.4 | D197: 1211 | E197: 0 | F197: 17438.4
A198: 10324 | B198: Postre de merengue Pavlova | C198: 13.9 | D198: 2535 | E198: 0.15 | F198: 29951.025
A199: 10324 | B199: Cerveza negra Steeleye | C199: 14.4 | D199: 539 | E199: 0.15 | F199: 6597.36
A200: 10324 | B200: Arenque salado | C200: 9.6 | D200: 351 | E200: 0 | F200: 3369.6
... 1956 more rows

Sheet Empleados
A1: CodEmp | B1: Nombres
A2: ADS425 | B2: Buchanan, Steven
A3: ADS296 | B3: Suyama, Michael
A4: ADS283 | B4: Peacock, Margaret
A5: ADS338 | B5: Leverling, Janet
A6: ADS183 | B6: Dodsworth, Anne
A7: ADS144 | B7: Davolio, Nancy
A8: ADS338 | B8: Callahan, Laura
A9: ADS338 | B9: Fuller, Andrew
A10: ADS128 | B10: King, Robert

Sheet Tempo
A3: Nro pedido | B3: Producto | C3: Pr.unit | D3: Cantidad | E3: Descuento | F3: Monto
A4: 10273 | B4: Pez espada | C4: 24.8 | D4: 816 | E4: 0.05 | F4: 19224.96
A5: 10273 | B5: Queso gorgonzola Telino | C5: 10 | D5: 2070 | E5: 0.05 | F5: 19665
A6: 10273 | B6: Queso de cabra | C6: 2 | D6: 300 | E6: 0 | F6: 600
A7: 10273 | B7: Carne de cangrejo de Boston | C7: 14.7 | D7: 330 | E7: 0.05 | F7: 4608.45
A8: 10273 | B8: Licor Cloudberry | C8: 14.4 | D8: 3528 | E8: 0.05 | F8: 48263.04
